{"text_format":"3","workbook":"xlsx","n_sheets":4,"sheets":["Inicio","Gastos","Ingresos","Resumen"],"not_rendered":{"charts":1,"defined_names":2},"read":"whole","date_system":"1900"}

{"sheet":"Inicio","index":0,"n_rows":8,"n_cols":2,"rows_kept":8}
[null,"INFORMACIÓN SOBRE ESTA PLANTILLA"]
[null,"Use este libro Presupuesto del evento para realizar un seguimiento de los Gastos generados y los Ingresos obtenidos en un evento."]
[null,"Rellene el Nombre del evento y escriba la información en tablas en la hoja de cálculo Gastos y la hoja de cálculo Ingresos."]
[null,"El total de Gastos total de Ingresos totales se calculan automáticamente."]
[null,"El resumen y el Resumen de ganancias y pérdidas se actualizan automáticamente en la hoja de cálculo Resumen."]
[null,"Nota: "]
[null,"Se facilitan instrucciones adicionales en la columna A de cada hoja de cálculo. Este texto se ha ocultado a propósito. Para eliminar el texto, seleccione la columna A y, a continuación, ELIMINAR. Para mostrar el texto, seleccione la columna A y, a continuación, cambie el color de fuente."]
[null,"Para obtener más información sobre las tablas, presione las teclas MAYÚS y F10 dentro de una tabla, seleccione la opción TABLA y, después, TEXTO ALTERNATIVO."]

{"sheet":"Gastos","index":1,"n_rows":33,"n_cols":8,"rows_kept":33,"merged":[[0,5,0,7],[1,1,1,7],[2,6,2,7]]}
["Escriba los gastos estimado y real de cada categoría en las respectivas tablas de esta hoja de cálculo. Los gastos totales se calculan automáticamente. Encontrará instrucciones útiles sobre cómo usar esta hoja de cálculo en las celdas de esta columna. Presione la flecha abajo para empezar."]
["Escriba el nombre del evento en la celda a la derecha para personalizar el título de esta y otras hojas de cálculo.","Presupuesto de evento para \nNombre del evento"]
["La etiqueta Gastos se encuentra en la celda G3.",{"$nulls":5}," Gastos"]
["La etiqueta Estimado está en la celda G4 y la etiqueta Real en la celda H4.",{"$nulls":5},"Estimado","Real"]
["La etiqueta Gastos totales se encuentra en la celda de la derecha. Los gastos estimado totales se calculan automáticamente en la celda G5. Los gastos real totales y la barra de datos donde se muestra el Total de gastos real totales se actualizan automáticamente en la celda H5. La instrucción siguiente se encuentra en la celda A7.","Gastos totales",{"$nulls":4},{"$f":"SUM(C12,C20,C26,C33,G12,G20,G25)","v":{"v":1145,"d":"1,145.00 €"}},{"$f":"SUM(D12,D20,D26,D33,H12,H20,H25)","v":{"v":395,"d":"395.00 €"}}]
[]
["Escriba los gastos de sitio en la tabla que comienza en la celda de la derecha y los gastos de comida en la tabla que comienza en la celda F7. La instrucción siguiente se encuentra en la celda A14.","Sitio","Estimado","Real",null,"Aperitivos","Estimado","Real"]
[null,"Gastos de sala y auditorio",{"v":500,"d":"500.00 €"},{"v":250,"d":"250.00 €"},null,"Comida"]
[null,"Personal del sitio",{"v":400,"d":"400.00 €"},{"v":50,"d":"50.00 €"},null,"Bebidas"]
[null,"Equipamiento",{"$nulls":3},"Mantelería"]
[null,"Mesas y sillas",{"$nulls":3},"Personal y compensaciones"]
[null,"Total",{"$f":"SUBTOTAL(109,GastosDeSitio[Estimado])","v":{"v":900,"d":"900.00 €"}},{"$f":"SUBTOTAL(109,GastosDeSitio[Real])","v":{"v":300,"d":"300.00 €"}},null,"Total",{"$f":"SUBTOTAL(109,GastosDeComida[Estimado])","v":{"v":0,"d":"0.00 €"}},{"$f":"SUBTOTAL(109,GastosDeComida[Real])","v":{"v":0,"d":"0.00 €"}}]
[]
["Escriba los gastos de decoraciones en la tabla que comienza en la celda de la derecha y los gastos de programa en la tabla que comienza en la celda F14. La instrucción siguiente se encuentra en la celda A22.","Decoraciones","Estimado","Real",null,"Programa","Estimado","Real"]
[null,"Flores",{"v":200,"d":"200.00 €"},{"v":50,"d":"50.00 €"},null,"Artistas"]
[null,"Velas",{"$nulls":3},"Altavoces"]
[null,"Iluminación",{"$nulls":3},"Viaje"]
[null,"Globos",{"$nulls":3},"Hotel"]
[null,"Suministros de papel",{"$nulls":3},"Otros"]
[null,"Total",{"$f":"SUBTOTAL(109,GastosDeDecoraciones[Estimado])","v":{"v":200,"d":"200.00 €"}},{"$f":"SUBTOTAL(109,GastosDeDecoraciones[Real])","v":{"v":50,"d":"50.00 €"}},null,"Total",{"$f":"SUBTOTAL(109,GastosDePrograma[Estimado])","v":{"v":0,"d":"0.00 €"}},{"$f":"SUBTOTAL(109,GastosDePrograma[Real])","v":{"v":0,"d":"0.00 €"}}]
[]
["Escriba los gastos de publicidad en la tabla que comienza en la celda de la derecha y los gastos de premios en la tabla que comienza en la celda F22. La instrucción siguiente se encuentra en la celda A28.","Publicidad","Estimado","Real",null,"Premios","Estimado","Real"]
[null,"Trabajo de gráficos",{"v":45,"d":"45.00 €"},{"v":45,"d":"45.00 €"},null,"Cintas, placas y trofeos"]
[null,"Fotocopias e impresión",{"$nulls":3},"Regalos"]
[null,"Gastos de envío",{"$nulls":3},"Total",{"$f":"SUBTOTAL(109,GastosDePremios[Estimado])","v":{"v":0,"d":"0.00 €"}},{"$f":"SUBTOTAL(109,GastosDePremios[Real])","v":{"v":0,"d":"0.00 €"}}]
[null,"Total",{"$f":"SUBTOTAL(109,GastosDePublicidad[Estimado])","v":{"v":45,"d":"45.00 €"}},{"$f":"SUBTOTAL(109,GastosDePublicidad[Real])","v":{"v":45,"d":"45.00 €"}}]
[]
["Escriba los gastos de varios en la tabla que comienza en la celda de la derecha.","Varios","Estimado","Real"]
[null,"Teléfono"]
[null,"Transporte"]
[null,"Suministros de papelería"]
[null,"Servicios de fax"]
[null,"Total",{"$f":"SUBTOTAL(109,GastosDeVarios[Estimado])","v":{"v":0,"d":"0.00 €"}},{"$f":"SUBTOTAL(109,GastosDeVarios[Real])","v":{"v":0,"d":"0.00 €"}}]

{"sheet":"Ingresos","index":2,"n_rows":30,"n_cols":7,"rows_kept":30,"merged":[[1,1,1,6],[2,5,2,6]]}
["Escriba los ingresos estimado y real de cada categoría en las respectivas tablas de esta hoja de cálculo. Los ingresos totales se calculan de forma automática. Encontrará instrucciones útiles sobre cómo usar esta hoja de cálculo en las celdas de esta columna. Presione la flecha abajo para empezar."]
["El nombre del evento se actualiza automáticamente en celda de la derecha.",{"$f":"Gastos!B2","v":"Presupuesto de evento para \nNombre del evento"}]
["La etiqueta Ingresos se encuentra en la celda F3.",{"$nulls":4}," Ingresos"]
["La etiqueta Estimado está en la celda F4 y la etiqueta Real en la celda G4.",{"$nulls":4},"Estimado","Real"]
["La etiqueta Ingresos totales se encuentra en la celda de la derecha. Los ingresos totai estimado se calculan automáticamente en la celda F5. Los ingresos total real y la barra de datos donde se muestra el total real se actualizan automáticamente en la celda G5.","Ingresos totales",{"$nulls":3},{"$f":"SUM(Admisiones[[#Totals],[Total estimado]],AdsInProgram[[#Totals],[Total estimado]],ExhibitorsAndVendors[[#Totals],[Total estimado]],SaleOfItem[[#Totals],[Total estimado]])","v":{"v":1936,"d":"1,936.00 €"}},{"$f":"SUM(Admisiones[[#Totals],[Total real]],AdsInProgram[[#Totals],[Total real]],ExhibitorsAndVendors[[#Totals],[Total real]],SaleOfItem[[#Totals],[Total real]])","v":{"v":1831,"d":"1,831.00 €"}}]
["La etiqueta Admisiones se encuentra en la celda de la derecha.","Admisiones"]
["Escriba el número de admisiones estimado y real con tarifas de entradas en la tabla que comienza en la celda a la derecha. Los ingresos por admisiones estimado y real se calculan automáticamente. La instrucción siguiente se encuentra en la celda A12.","Estimado","Real","Tipo","Precio","Total estimado","Total real"]
[null,300,278,"Adultos @",{"v":5,"d":"5.00 €"},{"$f":"B8*E8","v":{"v":1500,"d":"1,500.00 €"}},{"$f":"C8*E8","v":{"v":1390,"d":"1,390.00 €"}}]
[null,197,195,"Niños @",{"v":2,"d":"2.00 €"},{"$f":"B9*E9","v":{"v":394,"d":"394.00 €"}},{"$f":"C9*E9","v":{"v":390,"d":"390.00 €"}}]
[null,42,51,"Otros @",{"v":1,"d":"1.00 €"},{"v":42,"d":"42.00 €"},{"v":51,"d":"51.00 €"}]
[null," ",{"$nulls":3},{"$f":"SUBTOTAL(109,Admisiones[Total estimado])","v":{"v":1936,"d":"1,936.00 €"}},{"$f":"SUBTOTAL(109,Admisiones[Total real])","v":{"v":1831,"d":"1,831.00 €"}}]
["La etiqueta Anuncios en el programa se encuentra en la celda de la derecha.","Anuncios de programa"]
["Escriba el número de Anuncios de programa estimado y real con tarifas de Anuncios en la tabla que comienza en la celda a la derecha. Los ingresos por anuncios estimado y real se calculan automáticamente. La instrucción siguiente se encuentra en la celda A18.","Estimado","Real","Tipo","Precio","Total estimado","Total real"]
[{"$nulls":3},"Portadas @",null,{"$f":"B14*E14","v":{"v":0,"d":"0.00 €"}},{"$f":"C14*E14","v":{"v":0,"d":"0.00 €"}}]
[{"$nulls":3},"Medias páginas @",null,{"$f":"B15*E15","v":{"v":0,"d":"0.00 €"}},{"$f":"C15*E15","v":{"v":0,"d":"0.00 €"}}]
[{"$nulls":3},"Cuartos de página @",null,{"v":0,"d":"0.00 €"},{"v":0,"d":"0.00 €"}]
[null," ",{"$nulls":3},{"$f":"SUBTOTAL(109,AdsInProgram[Total estimado])","v":{"v":0,"d":"0.00 €"}},{"$f":"SUBTOTAL(109,AdsInProgram[Total real])","v":{"v":0,"d":"0.00 €"}}]
["La etiqueta Expositores o proveedores se encuentra en la celda a la derecha.","Expositores y proveedores"]
["Escriba el número de Expositores y proveedores estimado y real con tarifas de puestos en la tabla que comienza en la celda a la derecha. Los ingresos estimados y reales se calculan automáticamente. La instrucción siguiente se encuentra en la celda A24.","Estimado","Real","Tipo","Precio","Total estimado","Total real"]
[{"$nulls":3},"Stands grandes @",null,{"$f":"B20*E20","v":{"v":0,"d":"0.00 €"}},{"$f":"C20*E20","v":{"v":0,"d":"0.00 €"}}]
[{"$nulls":3},"Stands medianos @",null,{"$f":"B21*E21","v":{"v":0,"d":"0.00 €"}},{"$f":"C21*E21","v":{"v":0,"d":"0.00 €"}}]
[{"$nulls":3},"Stands pequeños @",null,{"v":0,"d":"0.00 €"},{"v":0,"d":"0.00 €"}]
[null," ",{"$nulls":3},{"$f":"SUBTOTAL(109,ExhibitorsAndVendors[Total estimado])","v":{"v":0,"d":"0.00 €"}},{"$f":"SUBTOTAL(109,ExhibitorsAndVendors[Total real])","v":{"v":0,"d":"0.00 €"}}]
["La etiqueta Venta de productos se encuentra en la celda de la derecha.","Venta de productos"]
["Escriba el número de Ventas de productos estimadas y reales con los precios de los productos en la tabla que comienza en la celda a la derecha. Los ingresos estimados y reales se calculan automáticamente.","Estimado","Real","Tipo","Precio","Total estimado","Total real"]
[{"$nulls":3},"Artículos @",null,{"$f":"B26*E26","v":{"v":0,"d":"0.00 €"}},{"$f":"C26*E26","v":{"v":0,"d":"0.00 €"}}]
[{"$nulls":3},"Artículos @",null,{"$f":"B27*E27","v":{"v":0,"d":"0.00 €"}},{"$f":"C27*E27","v":{"v":0,"d":"0.00 €"}}]
[{"$nulls":3},"Artículos @",null,{"v":0,"d":"0.00 €"},{"v":0,"d":"0.00 €"}]
[{"$nulls":3},"Artículos @",null,{"v":0,"d":"0.00 €"},{"v":0,"d":"0.00 €"}]
[null," ",{"$nulls":3},{"$f":"SUBTOTAL(109,SaleOfItem[Total estimado])","v":{"v":0,"d":"0.00 €"}},{"$f":"SUBTOTAL(109,SaleOfItem[Total real])","v":{"v":0,"d":"0.00 €"}}]

{"sheet":"Resumen","index":3,"n_rows":9,"n_cols":4,"rows_kept":9,"merged":[[1,1,1,3],[2,2,2,3],[8,1,8,4],[9,1,9,3]]}
["El Resumen de ganancias y pérdidas que muestra el Ingresos totales y gastos se actualiza automáticamente en esta hoja de cálculo. Encontrará instrucciones útiles sobre cómo usar esta hoja de cálculo en las celdas de esta columna. Presione la flecha abajo para empezar."]
["El nombre del evento se actualiza automáticamente en celda de la derecha.",{"$f":"Gastos!B2","v":"Presupuesto de evento para \nNombre del evento"}]
["La etiqueta de Resumen de ganancias y pérdidas está en la celda C3. La instrucción siguiente se encuentra en la celda A5.",null,"Resumen de ganancias y pérdidas"]
[]
["La tabla Total que comienza en la celda a la derecha también se actualiza automáticamente. La instrucción siguiente se encuentra en la celda A9.","Total","Estimado","Real"]
[null,"Ingresos totales",{"$f":"Ingresos!F5","v":{"v":1936,"d":"1,936.00 €"}},{"$f":"Ingresos!G5","v":{"v":1831,"d":"1,831.00 €"}}]
[null,"Gastos totales",{"$f":"Gastos!G5","v":{"v":1145,"d":"1,145.00 €"}},{"$f":"Gastos!H5","v":{"v":395,"d":"395.00 €"}}]
[null,"Beneficio total (o pérdida)",{"$f":"C6-C7","v":{"v":791,"d":"791.00 €"}},{"$f":"D6-D7","v":{"v":1436,"d":"1,436.00 €"}}]
["El gráfico de columnas agrupadas con la comparación entre las cantidades real y estimado de gastos totales e ingresos totales se encuentra en la celda a la derecha.","El gráfico de columnas agrupadas con la comparación entre las cantidades real y estimado de gastos totales e ingresos totales se encuentra en esta celda."]